bitfinex/quotes_ETHUSD_20241003
["timestamp","ask_amount","ask_price","bid_price","bid_amount"]
[1727988111702,4.26394,2345.3,2345.0,0.8054]
[1727988112043,4.26394,2345.3,2345.1,0.8054]
[1727988113441,8.52792,2345.3,2345.1,0.8054]
[1727988113614,8.52795,2345.3,2345.1,0.8054]
[1727988113822,8.52795,2345.3,2345.2,0.76137474]
[1727988114617,4.26394,2345.3,2345.2,0.76137474]
[1727988118034,4.26371,2345.4,2345.2,0.76137474]
[1727988118268,7.26306,2345.8,2345.4,0.7728]
[1727988118269,3.0,2345.8,2345.4,0.7728]
[1727988118547,4.26253,2346.1,2345.7,1.33107474]
[1727988118548,3.0,2345.9,2345.7,1.33107474]
[1727988118719,3.0,2345.9,2345.8,0.78107474]
[1727988119354,4.2625,2346.1,2345.8,0.78107474]
[1727988119355,4.26242,2346.1,2345.8,0.78107474]
[1727988119534,4.26242,2346.1,2346.0,0.78107474]
[1727988122043,4.26225,2346.2,2346.0,1.33107474]
[1727988122247,4.26187,2346.4,2346.1,0.8217]
[1727988122553,4.26187,2346.4,2346.3,0.82997474]
[1727988123809,3.4460221,2347.2,2346.3,0.82997474]
[1727988124005,4.26161,2346.6,2346.5,0.8267]
[1727988124314,3.0,2346.6,2346.5,0.83497474]
[1727988124523,7.26148,2346.6,2346.5,0.83497474]
[1727988125512,8.413758,2346.6,2346.5,0.00827474]
[1727988125915,9.196458,2346.6,2346.5,0.00827474]
[1727988128217,8.413758,2346.6,2346.5,0.00827474]
[1727988128418,7.26148,2346.6,2346.5,0.00827474]
[1727988133556,7.26148,2346.6,2346.5,0.77987474]
[1727988136337,7.26148,2346.6,2346.5,0.00827474]
[1727988142809,7.33573698,2346.6,2346.5,0.00827474]
[1727988144655,7.26148,2346.6,2346.5,0.00827474]
[1727988144988,9.55193973,2346.6,2346.5,0.00827474]
[1727988145146,12.75262469,2346.6,2346.5,0.00827474]
[1727988145350,12.21136093,2346.6,2346.5,0.00827474]
[1727988145971,12.21087064,2346.6,2346.5,0.00827474]
[1727988150653,8.79933973,2346.6,2346.5,0.00827474]
[1727988153895,4.26148,2346.6,2346.5,0.83927474]
[1727988156615,7.26148,2346.6,2346.5,0.83927474]
[1727988180639,7.26148,2346.6,2346.5,0.00827474]
[1727988181212,8.02798,2346.6,2346.5,0.00827474]
[1727988181422,9.256908,2346.6,2346.5,0.00827474]
[1727988181946,11.91598825,2346.6,2346.5,0.00827474]
[1727988192061,11.91582073,2346.6,2346.5,0.00827474]
[1727988196752,11.91580265,2346.6,2346.5,0.00827474]
[1727988197144,27.23278276,2346.6,2346.5,0.00827474]
[1727988197456,30.33482651,2346.6,2346.5,0.00827474]
[1727988198143,28.11757651,2346.6,2346.5,0.00827474]
[1727988199344,25.43719184,2346.6,2346.5,0.00827474]
[1727988199557,32.93542603,2346.6,2346.5,0.00827474]
[1727988199928,29.27113684,2346.6,2346.5,0.00827474]
[1727988200156,32.93248391,2346.6,2346.5,0.00827474]
[1727988200319,33.88924506,2346.6,2346.5,0.00827474]
[1727988201358,33.96252261,2346.6,2346.5,0.00827474]
[1727988204155,30.302148,2346.6,2346.5,0.00827474]
[1727988210332,64.62802585,2346.6,2346.5,0.00827474]
[1727988210531,65.58363847,2346.6,2346.5,0.00827474]
[1727988212176,64.62802585,2346.6,2346.5,0.00827474]
[1727988213699,65.58342358,2346.6,2346.5,0.00827474]
[1727988219768,64.62802585,2346.6,2346.5,0.00827474]
[1727988220373,65.58340232,2346.6,2346.5,0.00827474]
[1727988222613,69.24006634,2346.6,2346.5,0.00827474]
[1727988224698,65.58340232,2346.6,2346.1,0.00827474]
[1727988224902,11.66604179,2346.2,2346.1,0.00827474]
[1727988225102,7.81275,2345.9,2345.8,0.00827474]
[1727988225310,59.14395,2345.9,2345.8,0.00827474]
[1727988225537,60.89138904,2345.9,2345.8,0.00827474]
[1727988225814,61.84697005,2345.9,2345.8,0.00827474]
[1727988227923,60.89138904,2345.9,2345.8,0.00827474]
[1727988228329,63.98504306,2345.9,2345.8,0.00827474]
[1727988228534,63.98503172,2345.9,2345.8,0.00827474]
[1727988228822,63.98502887,2345.9,2345.8,0.00827474]
[1727988229885,63.98376069,2345.9,2345.8,0.00827474]
[1727988234326,64.52502445,2345.9,2345.8,0.00827474]
[1727988234702,64.52175118,2345.9,2345.8,0.00827474]
[1727988237851,14.02175118,2345.9,2345.8,0.00827474]
[1727988238003,63.23780618,2345.9,2345.8,0.00827474]
[1727988238203,64.52175118,2345.9,2345.8,0.00827474]
[1727988239528,64.52517527,2345.9,2345.8,0.00827474]
[1727988240109,34.41228304,2345.9,2345.8,0.00827474]
[1727988240307,29.92187904,2345.9,2345.8,0.00827474]
[1727988240534,27.48787904,2345.9,2345.8,0.00827474]
[1727988240843,27.93414672,2345.9,2345.8,0.00827474]
[1727988243638,13.291683,2345.9,2345.8,0.83247474]
[1727988243845,12.82818896,2345.9,2345.8,0.83247474]
[1727988244960,15.82818896,2345.9,2345.8,0.83247474]
[1727988245769,15.18908996,2345.9,2345.8,0.83247474]
[1727988246863,7.70901768,2345.9,2345.8,0.83247474]
[1727988247220,9.1787933,2345.9,2345.8,0.83247474]
[1727988247619,11.83102544,2345.9,2345.8,0.83247474]
[1727988248015,7.70901768,2345.9,2345.8,0.83247474]
[1727988252334,4.70901768,2345.9,2345.8,0.83247474]
[1727988252560,4.26275,2345.9,2345.8,0.83247474]
[1727988253870,7.26275,2345.9,2345.8,0.83247474]
[1727988268678,7.70894891,2345.9,2345.8,0.83247474]
[1727988281004,7.26275,2345.9,2345.8,0.83247474]
[1727988291020,7.26275,2345.9,2345.8,0.00827474]
[1727988291932,8.495623,2345.9,2345.8,0.00827474]
[1727988295236,7.26275,2345.9,2345.8,0.00827474]
[1727988303836,7.26275,2345.9,2345.8,0.83907474]
[1727988307373,4.26275,2345.9,2345.8,0.83907474]
[1727988307582,7.36664852,2346.2,2345.8,0.83907474]
[1727988307583,0.44624785,2346.2,2345.9,0.7608]
[1727988307886,4.26212,2346.3,2346.2,0.7744]
[1727988308038,4.26212,2346.3,2346.2,0.78267474]
[1727988308833,7.26212,2346.3,2346.2,0.78267474]
[1727988310286,7.26212,2346.3,2346.2,2.78267474]
[1727988327947,7.24200169,2346.3,2346.2,2.78267474]
[1727988328103,7.24200169,2346.3,2346.2,3.06094221]
[1727988330230,7.24200169,2346.3,2346.2,2.78267474]
[1727988342063,7.24200169,2346.3,2346.2,2.00827474]
[1727988342254,8.05920169,2346.3,2346.2,2.00827474]
[1727988351564,2.65696605,2346.5,2346.2,2.79657474]
[1727988351786,4.26175,2346.5,2346.2,2.79657474]
[1727988352068,4.26175,2346.5,2346.4,0.00827474]
[1727988353340,7.26175,2346.5,2346.4,0.00827474]
[1727988363100,8.05755,2346.5,2346.4,0.00827474]
[1727988364204,31.863224,2346.5,2346.4,0.00827474]
[1727988364570,37.95709261,2346.5,2346.4,0.00827474]
[1727988364872,37.95709261,2346.5,2346.2,2.0]
[1727988364873,8.60782,2346.3,2346.2,2.0]
[1727988365100,65.55842153,2346.3,2346.2,2.0]
[1727988365401,4.26539,2344.5,2344.3,0.8034]
[1727988365620,8.53084,2344.5,2344.3,0.8034]
[1727988365767,4.26539,2344.5,2344.3,0.8034]
[1727988366271,4.26539,2344.5,2344.3,0.9249]
[1727988366704,4.26548,2344.4,2344.3,0.9249]
[1727988368008,4.26548,2344.4,2344.3,0.93317474]
[1727988368704,4.26539,2344.5,2344.3,0.93317474]
[1727988368906,7.2652,2344.6,2344.3,0.93317474]
[1727988369063,7.2652,2344.6,2344.3,0.9249]
[1727988369262,7.2652,2344.6,2344.5,0.00827474]
[1727988384519,8.0759,2344.6,2344.5,0.00827474]
[1727988386345,9.309995,2344.6,2344.5,0.00827474]
[1727988387233,8.0759,2344.6,2344.5,0.00827474]
[1727988391809,7.2652,2344.6,2344.5,0.00827474]
[1727988392443,7.2652,2344.6,2344.5,0.82497474]
[1727988392760,4.26475,2344.8,2344.5,0.82497474]
[1727988392953,4.26475,2344.8,2344.3,0.20680064]
[1727988392954,4.26466,2344.9,2344.8,0.82497474]
[1727988393458,4.26466,2344.9,2344.8,0.00827474]
[1727988394354,7.26466,2344.9,2344.8,0.00827474]
[1727988399649,3.0,2344.9,2344.8,0.76037474]
[1727988399880,0.52045407,2345.6,2345.0,0.7521]
[1727988400085,0.52045407,2345.6,2345.1,1.14376861]
[1727988400290,4.26361,2345.5,2345.2,0.7521]
[1727988400492,4.26374,2345.4,2345.2,0.83736685]
[1727988400776,4.26384,2345.3,2345.2,0.7521]
[1727988400960,4.26384,2345.3,2345.2,0.00827474]
[1727988401466,7.26384,2345.3,2345.2,0.00827474]
[1727988403742,7.26384,2345.3,2345.2,0.79677474]
[1727988409362,4.26384,2345.3,2345.2,0.82557474]
[1727988409973,4.26384,2345.3,2345.2,0.00827474]
[1727988410767,7.26384,2345.3,2345.2,0.00827474]
[1727988410968,8.492841,2345.3,2345.2,0.00827474]
[1727988418600,7.26384,2345.3,2345.2,0.00827474]
[1727988422011,7.26384,2345.3,2345.2,0.78797474]
[1727988422248,3.0,2345.3,2345.2,0.78797474]
[1727988422615,7.26384,2345.3,2345.2,0.78797474]
[1727988423052,3.0,2345.3,2345.2,0.78797474]
[1727988423221,3.0,2345.3,2345.2,1.30173455]
[1727988423427,7.26384,2345.3,2345.2,1.30173455]
[1727988423641,7.26384,2345.3,2345.2,0.78797474]
[1727988423824,7.26384,2345.3,2345.2,0.00827474]
[1727988424232,8.06304,2345.3,2345.2,0.00827474]
[1727988424751,14.749114,2345.3,2345.2,0.00827474]
[1727988425753,11.758843,2345.3,2345.2,0.00827474]
[1727988426100,9.6652913,2345.3,2345.2,0.00827474]
[1727988428927,8.8660913,2345.3,2345.2,0.00827474]
[1727988429122,7.26384,2345.3,2345.2,0.00827474]
[1727988430963,4.26384,2345.3,2345.2,0.78917474]
[1727988431266,4.26367,2345.4,2345.2,1.33917474]
[1727988431267,4.26374,2345.4,2345.2,1.33917474]
[1727988431422,4.26374,2345.4,2345.3,0.00827474]
[1727988432461,7.26374,2345.4,2345.3,0.00827474]
[1727988434823,4.26374,2345.4,2345.3,0.00827474]
[1727988435019,4.26374,2345.4,2345.3,0.78917474]
[1727988437756,4.26374,2345.4,2345.3,1.33917474]
[1727988438171,4.26286,2345.9,2345.6,0.55]
[1727988438377,4.26285,2345.9,2345.8,0.79127474]
[1727988439384,4.26285,2345.9,2345.8,0.00827474]
[1727988439586,8.03715,2345.9,2345.8,0.00827474]
[1727988439890,9.267127,2345.9,2345.8,0.00827474]
[1727988440848,7.26285,2345.9,2345.8,0.79127474]
[1727988441053,4.26228,2346.2,2345.8,0.79127474]
[1727988441307,4.26228,2346.2,2346.0,0.783]
[1727988441308,8.5246,2346.2,2346.0,0.783]
[1727988441499,8.5246,2346.2,2346.1,0.00827474]
[1727988441814,4.26228,2346.2,2346.1,0.00827474]
[1727988442355,7.26228,2346.2,2346.1,0.00827474]
[1727988453053,9.283913,2346.2,2346.1,0.00827474]
[1727988462485,9.35817973,2346.2,2346.1,0.00827474]
[1727988463437,8.12744673,2346.2,2346.1,0.00827474]
[1727988464382,7.33654673,2346.2,2346.1,0.00827474]
[1727988464783,7.26228,2346.2,2346.1,0.00827474]
[1727988473040,11.57125,2346.8,2346.1,0.00827474]
[1727988473041,2.6607409,2346.9,2346.3,0.8106]
[1727988473307,4.25948,2347.7,2347.0,0.55]
[1727988473509,4.25948,2347.7,2347.6,0.00827474]
[1727988475309,7.25948,2347.7,2347.6,0.00827474]
[1727988476210,7.25948,2347.7,2347.6,0.12977474]
[1727988487211,8.489919,2347.7,2347.6,0.12977474]
[1727988487614,3.0,2347.7,2347.6,0.12977474]
[1727988488060,3.0,2347.8,2347.6,0.12977474]
[1727988488271,4.25789,2348.6,2347.8,4.25921]
[1727988488272,4.25856,2348.3,2347.8,4.25921]
[1727988488443,4.25824,2348.4,2348.2,0.00827474]
[1727988488626,4.25824,2348.4,2348.0,0.8263]
[1727988488627,4.25824,2348.4,2348.3,0.00827474]
[1727988489442,8.51557,2348.7,2348.3,0.00827474]
[1727988489649,4.76386327,2349.3,2348.1,4.25868]
[1727988489650,4.25795,2348.6,2348.1,4.25868]
[1727988489851,4.25795,2348.6,2348.2,0.51701545]
[1727988489852,4.25809,2348.5,2348.2,0.51701545]
[1727988490152,4.25809,2348.5,2348.4,0.00827474]
[1727988490715,7.25809,2348.5,2348.4,0.00827474]
[1727988504267,8.05169,2348.5,2348.4,0.00827474]
[1727988507735,8.05169,2348.5,2348.4,0.00742753]
[1727988512291,9.282654,2348.5,2348.4,0.00742753]
[1727988512650,8.05169,2348.5,2348.4,0.00742753]
[1727988517322,7.25809,2348.5,2348.4,0.00742753]
[1727988517528,7.25809,2348.5,2348.4,0.76672753]
[1727988519847,7.25809,2348.5,2348.4,0.00742753]
[1727988520623,7.70378006,2348.5,2348.4,0.00742753]
[1727988542014,8.89995307,2348.5,2348.4,0.00742753]
[1727988542347,9.69305307,2348.5,2348.4,0.00742753]
[1727988560405,9.76725145,2348.5,2348.4,0.00742753]
[1727988562272,8.57107844,2348.5,2348.4,0.00742753]
[1727988597645,9.81107844,2348.5,2348.4,0.00742753]
[1727988603961,24.83515044,2348.5,2348.4,0.00742753]
[1727988604119,26.40938957,2348.5,2348.4,0.00742753]
[1727988604455,10.77199714,2348.5,2348.4,0.00742753]
[1727988604754,2.72080714,2348.5,2348.4,0.00742753]
[1727988605062,1.68569006,2348.5,2348.4,0.82122753]
[1727988605218,1.68569006,2348.5,2348.4,1.32920028]
[1727988605553,5.94372006,2348.5,2348.4,0.82122753]
[1727988606355,1.68569006,2348.5,2348.4,0.82122753]
[1727988606632,1.68569006,2348.5,2348.4,5.71459272]
[1727988606945,4.25612,2349.6,2349.2,4.25676]
[1727988606946,0.07416698,2349.6,2349.2,4.25676]
[1727988607277,0.07416698,2349.6,2348.5,4.25802]
[1727988607278,0.27,2349.6,2349.5,0.7633]
[1727988607786,4.52604,2349.6,2349.5,0.7633]
[1727988608234,0.27,2349.6,2349.5,0.7633]
[1727988608752,0.27,2349.6,2349.5,0.7713]
[1727988609841,4.52604,2349.6,2349.5,0.7713]
[1727988610781,7.52604,2349.6,2349.5,0.7713]
[1727988610987,7.52604,2349.6,2349.5,0.008]
[1727988611293,9.52604,2349.6,2349.5,0.008]
[1727988633722,11.69957752,2349.6,2349.5,0.008]
[1727988639500,9.52604,2349.6,2349.5,0.008]
[1727988640123,9.52604,2349.6,2349.5,0.7646]
[1727988640501,6.52604,2349.6,2349.5,0.7646]
[1727988640729,2.27,2349.6,2349.5,0.7646]
[1727988640934,6.52604,2349.6,2349.5,0.7646]
[1727988641434,2.27,2349.6,2349.5,1.3146]
[1727988641642,2.27,2349.6,2349.5,1.871698]
[1727988641942,6.52604,2349.6,2349.5,1.321698]
[1727988642251,6.52604,2349.6,2349.5,0.7646]
[1727988642744,2.27,2349.6,2349.5,1.3146]
[1727988642901,2.27,2349.6,2349.5,5.57082]
[1727988643098,2.27,2349.6,2349.5,1.3146]
[1727988643532,2.27,2349.6,2349.5,0.7646]
[1727988643533,6.52604,2349.6,2349.5,0.7646]
[1727988645941,2.27,2349.6,2349.5,0.7646]
[1727988648446,6.52604,2349.6,2349.5,0.7646]
[1727988650220,2.27,2349.6,2349.5,0.7646]
[1727988650425,6.52604,2349.6,2349.5,0.7646]
[1727988654455,2.27,2349.6,2349.5,0.7646]
[1727988654618,2.27,2349.6,2349.5,1.82522776]
[1727988656058,2.27,2349.6,2349.5,1.91034451]
[1727988656429,2.27,2349.6,2349.5,1.82522776]
[1727988660980,2.27,2349.6,2349.5,1.91034219]
[1727988661967,2.27,2349.6,2349.5,1.82522776]
[1727988664597,2.27,2349.6,2349.5,6.08144776]
[1727988664749,2.27,2349.6,2349.5,1.82522776]
[1727988665098,6.52604,2349.6,2349.5,1.82522776]
[1727988665255,6.52604,2349.6,2349.5,1.3146]
[1727988665454,6.52604,2349.6,2349.5,0.7646]
[1727988665899,6.52604,2349.6,2349.5,0.008]
[1727988667701,9.52604,2349.6,2349.5,0.008]
[1727988676723,9.52604,2349.6,2349.5,1.3282]
[1727988676724,2.27,2349.6,2349.5,1.3282]
[1727988676876,2.27,2349.6,2349.5,5.58442]
[1727988677074,2.27,2349.6,2349.5,2.3973798]
[1727988679328,2.27,2349.6,2349.5,2.312267]
[1727988683096,2.27,2349.6,2349.5,2.39738239]
[1727988684000,2.27,2349.6,2349.5,2.312267]
[1727988693059,2.27,2349.6,2349.5,0.008]
[1727988693272,6.52604,2349.6,2349.5,0.008]
[1727988693421,7.29894,2349.6,2349.5,0.008]
[1727988705496,6.52604,2349.6,2349.5,0.008]
[1727988713984,6.52604,2349.6,2349.5,0.7781]
[1727988719867,6.52604,2349.6,2349.5,0.008]
[1727988725509,6.52604,2349.6,2349.5,0.558]
[1727988725711,6.52604,2349.6,2349.5,0.008]
[1727988736929,4.5183,2349.5,2349.3,0.7691]
[1727988737728,4.96359786,2349.5,2349.3,0.7691]
[1727988739922,4.96359786,2349.5,2349.4,0.008]
[1727988742635,4.96359786,2349.5,2349.0,5.59835361]
[1727988742636,0.768,2349.3,2349.0,1.34123361]
[1727988742831,4.50053,2349.4,2349.0,4.8071]
[1727988743205,4.50053,2349.4,2349.1,0.7569]
[1727988743436,4.25663,2349.3,2349.1,0.7569]
[1727988743605,4.50047,2349.4,2349.1,0.7569]
[1727988743800,1.01537679,2349.4,2349.0,0.55]
[1727988744043,4.25658,2349.3,2349.0,0.55]
[1727988745814,0.234,2349.2,2349.0,0.55]
[1727988746508,0.234,2349.2,2349.1,0.7675]
[1727988746703,0.234,2349.2,2349.1,1.3255]
[1727988751942,4.25661,2349.3,2349.1,1.0915]
[1727988752153,4.25661,2349.3,2349.2,0.008]
[1727988754645,0.44529786,2349.5,2349.2,4.2646]
[1727988754855,0.44529786,2349.5,2349.4,1.3389]
[1727988755150,0.44529786,2349.5,2349.4,1.42401818]
[1727988756649,4.70151786,2349.5,2349.4,1.42401968]
[1727988756832,4.70151786,2349.5,2349.4,1.3389]
[1727988757269,0.44529786,2349.5,2349.4,1.3389]
[1727988757809,0.44529786,2349.5,2349.4,1.3189]
[1727988757995,0.44529786,2349.5,2349.4,1.876465]
[1727988758515,4.70151786,2349.5,2349.4,0.008]
[1727988761521,0.44529786,2349.5,2349.4,0.558]
[1727988761725,0.44529786,2349.5,2349.4,5.6005]
[1727988762077,0.44529786,2349.5,2349.4,5.68561523]
[1727988779107,0.44529786,2349.5,2349.4,5.6005]
[1727988779304,0.44529786,2349.5,2349.4,6.67130439]
[1727988786764,2.0,2349.6,2349.5,5.63022]
[1727988787009,2.0,2349.6,2349.5,5.71532474]
[1727988787668,2.0,2349.6,2349.5,4.80622]
[1727988788124,2.0,2349.6,2349.5,0.55]
[1727988788125,2.7752,2349.6,2349.5,0.55]
[1727988788339,7.03124,2349.6,2349.4,0.008]
[1727988788637,4.25622,2349.5,2349.4,0.008]
[1727988788835,7.03124,2349.6,2349.4,0.008]
[1727988789039,11.990514,2349.6,2349.4,0.008]
[1727988789280,7.734364,2349.6,2349.4,0.008]
[1727988789444,7.03124,2349.6,2349.4,0.008]
[1727988789841,7.03124,2349.6,2349.4,0.558]
[1727988791516,2.7752,2349.6,2349.4,0.558]
[1727988793743,2.7752,2349.6,2349.4,0.008]
[1727988795620,2.7752,2349.6,2349.5,0.55]
[1727988798201,2.7752,2349.6,2349.4,0.008]
[1727988799005,7.03125,2349.6,2349.4,0.008]
[1727988802229,7.47618847,2349.6,2349.4,0.008]
[1727988804443,4.25622,2349.5,2349.4,0.008]
[1727988807618,4.2551375,2349.5,2349.4,0.008]
[1727988809663,11.73235847,2349.6,2349.4,0.008]
[1727988810771,4.25622,2349.5,2349.4,0.008]
[1727988832438,7.47624847,2349.6,2349.4,0.008]
[1727988832729,2.44493847,2349.6,2349.4,0.558]
[1727988832932,2.44493847,2349.6,2349.5,1.031454]
[1727988833232,6.70097847,2349.6,2349.5,1.031454]
[1727988833431,6.70097847,2349.6,2349.4,0.008]
[1727988836994,10.95719847,2349.6,2349.4,0.008]
[1727988837293,10.95711847,2349.6,2349.4,0.008]
[1727988838091,10.95718847,2349.6,2349.4,0.008]
[1727988838953,6.70097847,2349.6,2349.4,0.008]
[1727988839871,4.25622,2349.5,2349.4,0.008]
[1727988840586,5.05042,2349.5,2349.4,0.008]
[1727988841089,6.22555985,2349.5,2349.4,0.008]
[1727988842090,5.05042,2349.5,2349.4,0.008]
[1727988857811,4.25622,2349.5,2349.4,0.008]
[1727988879188,9.70104847,2349.6,2349.5,1.322]
[1727988879336,9.70104847,2349.6,2349.5,0.55]
[1727988879538,4.25622,2349.5,2349.4,0.558]
[1727988880386,4.25622,2349.5,2349.4,0.008]
[1727988901083,9.70099847,2349.6,2349.4,0.008]
[1727988901492,9.70099847,2349.6,2349.4,0.558]
[1727988903400,13.95721847,2349.6,2349.4,0.558]
[1727988904097,4.25622,2349.5,2349.4,0.558]
[1727988905509,4.25622,2349.5,2349.4,0.008]
[1727988905819,6.47034185,2349.5,2349.4,0.008]
[1727988908517,5.07462,2349.5,2349.4,0.008]
[1727988915000,8.07462,2349.5,2349.4,0.008]
[1727988919439,13.947674,2349.5,2349.4,0.008]
[1727988921192,16.047693,2349.5,2349.4,0.008]
[1727988921886,15.623883,2349.5,2349.4,0.008]
[1727988922128,17.55254154,2349.5,2349.4,0.008]
[1727988924800,18.11356197,2349.5,2349.4,0.008]
[1727988925196,4.25894,2348.0,2347.9,1.34123361]
[1727988925435,4.25894,2348.0,2347.8,1.34123361]
[1727988925436,4.25912,2347.9,2347.8,1.34123361]
[1727988926325,4.2593,2347.8,2347.7,2.15543361]
[1727988926820,4.2593,2347.8,2347.7,0.8142]
[1727988927636,4.2593,2347.8,2347.7,0.82247474]
[1727988928251,4.2593,2347.8,2347.7,0.00827474]
[1727988931562,8.916342,2347.8,2347.7,0.00827474]
[1727988931767,8.927442,2347.8,2347.7,0.00827474]
[1727988932495,19.62698,2347.8,2347.7,0.00827474]
[1727988932629,19.410716,2347.8,2347.7,0.00827474]
[1727988932831,8.927442,2347.8,2347.7,0.00827474]
[1727988933234,8.0756,2347.8,2347.7,0.00827474]
[1727988933428,4.25912,2347.9,2347.7,0.79957474]
[1727988933871,4.2593,2347.8,2347.7,0.79957474]
[1727988934051,4.2593,2347.8,2347.7,0.00827474]
[1727988934785,7.2593,2347.8,2347.7,0.00827474]
[1727988934991,8.493312,2347.8,2347.7,0.00827474]
[1727988935448,7.2593,2347.8,2347.7,0.00827474]
[1727988941294,7.70481791,2347.8,2347.7,0.00827474]
[1727988956327,8.50281791,2347.8,2347.7,0.00827474]
[1727988957395,7.70481791,2347.8,2347.7,0.00827474]
[1727988973134,7.70481791,2347.8,2347.7,0.77607474]
[1727988973442,7.70481791,2347.8,2347.7,0.00827474]
[1727988975337,8.9786917,2347.8,2347.7,0.00827474]
[1727988976452,9.7642917,2347.8,2347.7,0.00827474]
[1727988988952,23.6178017,2347.8,2347.7,0.00827474]
[1727988989154,24.57923718,2347.8,2347.7,0.00827474]
[1727988989512,22.92294718,2347.8,2347.7,0.00827474]
[1727988989843,21.74753218,2347.8,2347.7,0.00827474]
[1727988990253,20.7860967,2347.8,2347.7,0.00827474]
[1727988990717,11.9778457,2347.8,2347.7,0.00827474]
[1727988991112,11.8278447,2347.8,2347.7,0.00827474]
[1727988992054,11.7877507,2347.8,2347.7,0.00827474]
[1727988995362,11.86198119,2347.8,2347.7,0.00827474]
[1727988995660,11.7877507,2347.8,2347.7,0.00827474]
[1727988999943,9.7642917,2347.8,2347.7,0.00827474]
[1727989001044,7.70481791,2347.8,2347.7,0.00827474]
[1727989001244,4.70481791,2347.8,2347.7,0.00827474]
[1727989001465,4.70481791,2347.8,2347.7,0.79707474]
[1727989002679,7.70481791,2347.8,2347.7,0.79707474]
[1727989008712,4.70481791,2347.8,2347.7,0.79707474]
[1727989008852,0.44551791,2347.8,2347.7,1.34707474]
[1727989009056,4.70481791,2347.8,2347.7,1.34707474]
[1727989009995,4.70481791,2347.8,2347.7,0.79707474]
[1727989019988,4.70481791,2347.8,2347.7,0.00827474]
[1727989028532,0.44551791,2347.8,2347.7,0.79067474]
[1727989028736,0.44551791,2347.8,2347.7,5.60015474]
[1727989028979,0.44551791,2347.8,2347.7,6.67982512]
[1727989029180,0.44551791,2347.8,2347.7,8.56292357]
[1727989029469,0.44551791,2347.8,2347.7,6.59464356]
[1727989029673,0.44551791,2347.8,2347.7,2.33516356]
[1727989029871,4.25899,2348.0,2347.8,0.55]
[1727989030078,4.25899,2348.0,2347.9,0.2967911]
[1727989030237,4.25899,2348.0,2347.9,0.00827474]
[1727989030772,4.25885,2348.1,2347.9,0.00827474]
[1727989031371,4.25894,2348.0,2347.9,0.00827474]
[1727989031609,4.25878,2348.1,2347.9,0.00827474]
[1727989034802,4.25894,2348.0,2347.9,0.00827474]
[1727989035813,4.25878,2348.1,2347.9,0.00827474]
[1727989038429,4.25894,2348.0,2347.9,0.00827474]
[1727989042960,4.25878,2348.1,2347.9,0.00827474]
[1727989044718,4.25894,2348.0,2347.9,0.00827474]
[1727989046458,8.23029888,2348.0,2347.9,0.00827474]
[1727989051539,7.25894,2348.0,2347.9,0.00827474]
[1727989055038,8.07704,2348.0,2347.9,0.00827474]
[1727989060956,7.25894,2348.0,2347.9,0.00827474]
[1727989061187,4.25894,2348.0,2347.9,0.00827474]
[1727989062790,7.25894,2348.0,2347.9,0.00827474]
[1727989065417,9.22526888,2348.0,2347.9,0.00827474]
[1727989065897,8.45526888,2348.0,2347.9,0.00827474]
[1727989066277,7.25894,2348.0,2347.9,0.00827474]
[1727989066479,7.25894,2348.0,2347.9,0.77667474]
[1727989077633,7.25894,2348.0,2347.9,0.00827474]
[1727989087397,8.09044,2348.0,2347.9,0.00827474]
[1727989088622,31.5896,2348.0,2347.9,0.00827474]
[1727989088831,36.17993003,2348.0,2347.9,0.00827474]
[1727989089347,43.96916303,2348.0,2347.9,0.00827474]
[1727989089700,41.87454203,2348.0,2347.9,0.00827474]
[1727989089899,42.43556246,2348.0,2347.9,0.00827474]
[1727989108168,42.50980692,2348.0,2347.9,0.00827474]
[1727989110751,45.05980692,2348.0,2347.9,0.00827474]
[1727989111067,5.08406,2347.6,2347.5,0.00827474]
[1727989111226,58.366297,2347.6,2347.5,0.00827474]
[1727989111865,58.81203029,2347.6,2347.5,0.00827474]
[1727989113533,59.02979329,2347.6,2347.5,0.00827474]
[1727989114935,59.59081372,2347.6,2347.5,0.00827474]
[1727989115141,61.91947226,2347.6,2347.5,0.00827474]
[1727989115741,63.91947226,2347.6,2347.5,0.00827474]
[1727989116561,64.8772312,2347.6,2347.5,0.00827474]
[1727989116771,63.91947226,2347.6,2347.5,0.00827474]
[1727989117144,64.87719365,2347.6,2347.5,0.00827474]
[1727989117347,64.87718443,2347.6,2347.5,0.00827474]
[1727989118583,65.42718443,2347.6,2347.5,0.00827474]
[1727989127685,59.373408,2347.6,2347.5,0.00827474]
[1727989128695,44.63173808,2347.6,2347.5,0.00827474]
[1727989129869,45.19275851,2347.6,2347.5,0.00827474]
[1727989130675,41.36835851,2347.6,2347.5,0.00827474]
[1727989130898,12.26952154,2347.6,2347.5,0.00827474]
[1727989131103,11.31180937,2347.6,2347.5,0.00827474]
[1727989132003,14.31180937,2347.6,2347.5,0.00827474]
[1727989132811,14.8728298,2347.6,2347.5,0.00827474]
[1727989133917,11.13482829,2347.6,2347.5,0.00827474]
[1727989134412,12.85252538,2347.6,2347.5,0.00827474]
[1727989134775,14.19064581,2347.6,2347.5,0.00827474]
[1727989135983,12.85252538,2347.6,2347.5,0.00827474]
[1727989137507,11.13482829,2347.6,2347.5,0.00827474]
[1727989137991,8.13482829,2347.6,2347.5,0.76777474]
[1727989139300,11.69584872,2347.6,2347.5,0.00827474]
[1727989150596,16.07331415,2347.6,2347.5,0.00827474]
[1727989150810,18.49056417,2347.6,2347.5,0.00827474]
[1727989151007,14.11309874,2347.6,2347.5,0.00827474]
[1727989151209,56.18106374,2347.6,2347.5,0.00827474]
[1727989151823,57.14047634,2347.6,2347.5,0.00827474]
[1727989152432,61.51794177,2347.6,2347.5,0.00827474]
[1727989153345,57.14047634,2347.6,2347.5,0.00827474]
[1727989153841,54.08970734,2347.6,2347.5,0.00827474]
[1727989154038,52.05214034,2347.6,2347.5,0.00827474]
[1727989154239,50.64569034,2347.6,2347.5,0.00827474]
[1727989154539,49.83394734,2347.6,2347.5,0.00827474]
[1727989154742,54.21141277,2347.6,2347.5,0.00827474]
[1727989155118,53.91349877,2347.6,2347.5,0.00827474]
[1727989155314,45.93406734,2347.6,2347.5,0.00827474]